fUSD/lending_fUSD_20250930
["ID","MTS","AMOUNT","RATE_DAILY","PERIOD"]
[388595069,1759248651457,-1572.72,0.00019178,2]
[388595071,1759248651466,-500.0,0.00019178,2]
[388595073,1759248651476,-500.0,0.00019178,2]
[388595075,1759248651485,-500.0,0.00019178,2]
[388595077,1759248651495,-752.13,0.00019178,2]
[388595079,1759248651504,-500.0,0.00019178,2]
[388595081,1759248651513,-1753.79,0.00019178,2]
[388595083,1759248651522,-500.0,0.00019178,2]
[388595085,1759248651531,-4526.0,0.00019178,2]
[388595087,1759248651540,-1452.88,0.00019178,2]
[388595089,1759248651549,-500.0,0.00019178,2]
[388595091,1759248651561,-500.0,0.00019178,2]
[388595093,1759248651571,-500.0,0.00019178,2]
[388595095,1759248651580,-500.0,0.00019178,2]
[388595097,1759248651589,-2015.27,0.00019178,2]
[388595099,1759248651599,-431.96165594,0.00019178,2]
[388595101,1759248651609,-796.74,0.00019178,2]
[388595103,1759248651618,-797.4,0.00019178,2]
[388595105,1759248651627,-500.0,0.00019178,2]
[388595107,1759248651638,-4311.57,0.00019178,2]
[388595108,1759248651647,-500.0,0.00019178,2]
[388595111,1759248651656,-1526.98,0.00019178,2]
[388595113,1759248651665,-500.0,0.00019178,2]
[388595114,1759248651675,-500.0,0.00019178,2]
[388595117,1759248651684,-637.02,0.00019178,2]
[388595119,1759248651694,-831.25,0.00019178,2]
[388595121,1759248651704,-500.0,0.00019178,2]
[388595123,1759248651713,-151.0,0.00019178,2]
[388595125,1759248651723,-151.0,0.00019178,2]
[388595127,1759248651733,-847.64,0.00019178,2]
[388595129,1759248651742,-5595.23,0.00019178,2]
[388595131,1759248651751,-151.0,0.00019178,2]
[388595132,1759248651761,-2945.39,0.00019178,2]
[388595134,1759248651770,-504.442864,0.00019178,2]
[388595136,1759248651779,-500.0,0.00019178,2]
[388595139,1759248651789,-500.0,0.00019178,2]
[388595141,1759248651799,-151.0,0.00019178,2]
[388595143,1759248651809,-504.442864,0.00019178,2]
[388595145,1759248651818,-500.0,0.00019178,2]
[388595147,1759248651827,-500.0,0.00019178,2]
[388595149,1759248651836,-504.442864,0.00019178,2]
[388595150,1759248651846,-500.0,0.00019178,2]
[388595152,1759248651856,-722.87,0.00019178,2]
[388595155,1759248651866,-517.39,0.00019178,2]
[388595157,1759248651875,-500.0,0.00019178,2]
[388595158,1759248651885,-151.0,0.00019178,2]
[388595160,1759248651894,-1581.9,0.00019178,2]
[388595162,1759248651904,-504.442864,0.00019178,2]
[388595164,1759248651917,-500.0,0.00019178,2]
[388595167,1759248651927,-500.0,0.00019178,2]
[388595169,1759248651937,-500.0,0.00019178,2]
[388595170,1759248651948,-1142.06,0.00019178,2]
[388595172,1759248651957,-151.0,0.00019178,2]
[388595175,1759248651967,-1142.06,0.00019178,2]
[388595177,1759248651977,-1142.06,0.00019178,2]
[388595178,1759248651987,-1142.06,0.00019178,2]
[388595180,1759248651996,-1142.06,0.00019178,2]
[388595182,1759248652006,-1142.06,0.00019178,2]
[388595185,1759248652016,-151.0,0.00019178,2]
[388595187,1759248652026,-1142.06,0.00019178,2]
[388595189,1759248652035,-1142.06,0.00019178,2]
[388595190,1759248652045,-1142.06,0.00019178,2]
[388595193,1759248652055,-1142.06,0.00019178,2]
[388595195,1759248652064,-1142.06,0.00019178,2]
[388595197,1759248652073,-1142.06,0.00019178,2]
[388595198,1759248652083,-1142.06,0.00019178,2]
[388595201,1759248652093,-1429.53,0.00019178,2]
[388595203,1759248652103,-1142.06,0.00019178,2]
[388595205,1759248652113,-1142.06,0.00019178,2]
[388595207,1759248652123,-151.0,0.00019178,2]
[388595209,1759248652132,-151.0,0.00019178,2]
[388595211,1759248652142,-500.0,0.00019178,2]
[388595213,1759248652151,-6337.63,0.00019178,2]
[388595215,1759248652160,-500.0,0.00019178,2]
[388595217,1759248652169,-1701.88,0.00019178,2]
[388595218,1759248652179,-500.0,0.00019178,2]
[388595221,1759248652188,-500.0,0.00019178,2]
[388595223,1759248652198,-151.0,0.00019178,2]
[388595224,1759248652207,-151.882277,0.00019178,2]
[388595226,1759248652217,-151.0,0.00019178,2]
[388595229,1759248652226,-500.0,0.00019178,2]
[388595231,1759248652236,-151.0,0.00019178,2]
[388595232,1759248652245,-151.0,0.00019178,2]
[388595235,1759248652255,-662.52,0.00019178,2]
[388595236,1759248652264,-500.0,0.00019178,2]
[388595239,1759248652273,-2355.88,0.00019178,2]
[388595240,1759248652283,-361.66920961,0.00019178,2]
[388595243,1759248652292,-151.0,0.00019178,2]
[388595244,1759248652302,-151.0,0.00019178,2]
[388595246,1759248652312,-2298.8,0.00019178,2]
[388595248,1759248652321,-500.0,0.00019178,2]
[388595249,1759248652331,-500.0,0.00019178,2]
[388595251,1759248652339,-938.91,0.00019178,2]
[388595253,1759248652349,-2839.19,0.00019178,2]
[388595255,1759248652359,-151.0,0.00019178,2]
[388595257,1759248652368,-1427.75,0.00019178,2]
[388595259,1759248652377,-4102.94,0.00019178,2]
[388595261,1759248652386,-500.0,0.00019178,2]
[388595263,1759248652396,-500.0,0.00019178,2]
[388595265,1759248652405,-151.0,0.00019178,2]
[388595267,1759248652416,-316.31253928,0.00019178,2]
[388595269,1759248652425,-157.174103,0.00019178,2]
[388595271,1759248652434,-500.0,0.00019178,2]
[388595273,1759248652443,-1056.69,0.00019178,2]
[388595275,1759248652453,-500.0,0.00019178,2]
[388595277,1759248652462,-807.94,0.00019178,2]
[388595279,1759248652472,-3098.25,0.00019178,2]
[388595281,1759248652481,-2044.08,0.00019178,2]
[388595283,1759248652491,-2818.4,0.00019178,2]
[388595285,1759248652500,-500.0,0.00019178,2]
[388595287,1759248652509,-151.0,0.00019178,2]
[388595289,1759248652518,-500.0,0.00019178,2]
[388595290,1759248652528,-500.0,0.00019178,2]
[388595292,1759248652537,-1387.26,0.00019178,2]
[388595294,1759248652546,-500.0,0.00019178,2]
[388595296,1759248652557,-1337.11,0.00019178,2]
[388595298,1759248652573,-500.0,0.00019178,2]
[388595300,1759248652582,-500.0,0.00019178,2]
[388595302,1759248652591,-1661.15,0.00019178,2]
[388595304,1759248652604,-500.0,0.00019178,2]
[388595306,1759248652613,-500.0,0.00019178,2]
[388595307,1759248652622,-975.0,0.00019178,2]
[388595308,1759248652632,-4360.7,0.00019178,2]
[388595309,1759248652644,-500.0,0.00019178,2]
[388595310,1759248652653,-500.0,0.00019178,2]
[388595311,1759248652663,-2573.07,0.00019178,2]
[388595312,1759248652672,-2656.35,0.00019178,2]
[388595313,1759248652681,-500.0,0.00019178,2]
[388595314,1759248652691,-500.0,0.00019178,2]
[388595315,1759248652701,-500.0,0.00019178,2]
[388595316,1759248652710,-509.54,0.00019178,2]
[388595317,1759248652720,-500.0,0.00019178,2]
[388595318,1759248652729,-500.0,0.00019178,2]
[388595319,1759248652738,-4835.23,0.00019178,2]
[388595320,1759248652747,-500.0,0.00019178,2]
[388595321,1759248652758,-4848.77,0.00019178,2]
[388595323,1759248652767,-500.0,0.00019178,2]
[388595325,1759248652776,-3654.84,0.00019178,2]
[388595326,1759248652786,-500.0,0.00019178,2]
[388595327,1759248652796,-500.0,0.00019178,2]
[388595328,1759248652805,-500.0,0.00019178,2]
[388595329,1759248652815,-500.0,0.00019178,2]
[388595330,1759248652825,-4041.92,0.00019178,2]
[388595331,1759248652835,-1007.52,0.00019178,2]
[388595332,1759248652845,-942.45,0.00019178,2]
[388595333,1759248652855,-697.8,0.00019178,2]
[388595334,1759248652865,-500.0,0.00019178,2]
[388595335,1759248652875,-500.0,0.00019178,2]
[388595336,1759248652885,-585.8,0.00019178,2]
[388595337,1759248652895,-151.0,0.00019178,2]
[388595338,1759248652904,-766.55,0.00019178,2]
[388595339,1759248652915,-151.0,0.00019178,2]
[388595340,1759248653207,-500.0,0.00019178,2]
[388595341,1759248653218,-151.0,0.00019178,2]
[388595342,1759248653228,-500.0,0.00019178,2]
[388595343,1759248653238,-1785.64,0.00019178,2]
[388595344,1759248653249,-500.0,0.00019178,2]
[388595345,1759248653259,-500.0,0.00019178,2]
[388595346,1759248653268,-4640.92,0.00019178,2]
[388595347,1759248653279,-500.0,0.00019178,2]
[388595348,1759248653290,-500.0,0.00019178,2]
[388595349,1759248653300,-500.0,0.00019178,2]
[388595350,1759248653311,-767.5,0.00019178,2]
[388595351,1759248653320,-151.575418,0.00019178,2]
[388595352,1759248653331,-500.0,0.00019178,2]
[388595353,1759248653341,-500.0,0.00019178,2]
[388595354,1759248653352,-500.0,0.00019178,2]
[388595355,1759248653363,-3501.99,0.00019178,2]
[388595356,1759248653373,-500.0,0.00019178,2]
[388595357,1759248653383,-500.0,0.00019178,2]
[388595358,1759248653393,-2044.69,0.00019178,2]
[388595359,1759248653403,-500.0,0.00019178,2]
[388595360,1759248653412,-151.0,0.00019178,2]
[388595361,1759248653422,-152.522161,0.00019178,2]
[388595362,1759248653431,-500.0,0.00019178,2]
[388595363,1759248653441,-764.44,0.00019178,2]
[388595364,1759248653451,-2895.12,0.00019178,2]
[388595365,1759248653460,-151.0,0.00019178,2]
[388595366,1759248653470,-2353.61,0.00019178,2]
[388595367,1759248653480,-908.66,0.00019178,2]
[388595368,1759248653491,-500.0,0.00019178,2]
[388595369,1759248653501,-151.0,0.00019178,2]
[388595370,1759248653511,-500.0,0.00019178,2]
[388595371,1759248653521,-500.0,0.00019178,2]
[388595372,1759248653530,-151.0,0.00019178,2]
[388595373,1759248653540,-2383.18,0.00019178,2]
[388595374,1759248653549,-687.05,0.00019178,2]
[388595375,1759248653561,-500.0,0.00019178,2]
[388595376,1759248653571,-5822.837619,0.00019178,2]
[388595377,1759248653581,-151.0,0.00019178,2]
[388595378,1759248653591,-500.0,0.00019178,2]
[388595379,1759248653600,-500.0,0.00019178,2]
[388595380,1759248653612,-151.0,0.00019178,2]
[388595381,1759248653622,-500.0,0.00019178,2]
[388595382,1759248653632,-1848.87,0.00019178,2]
[388595383,1759248653645,-151.0,0.00019178,2]
[388595384,1759248653655,-500.0,0.00019178,2]
[388595385,1759248653665,-2642.3,0.00019178,2]
[388595386,1759248653674,-151.0,0.00019178,2]
[388595387,1759248653684,-1794.61,0.00019178,2]
[388595388,1759248653693,-500.0,0.00019178,2]
[388595389,1759248653702,-2580.41,0.00019178,2]
[388595390,1759248653712,-500.0,0.00019178,2]
[388595391,1759248653722,-3641.17,0.00019178,2]
[388595392,1759248653732,-3415.88,0.00019178,2]
[388595393,1759248653742,-1552.49,0.00019178,2]
[388595394,1759248653752,-151.0,0.00019178,2]
[388595395,1759248653761,-208.896971,0.00019178,2]
[388595396,1759248653771,-500.0,0.00019178,2]
[388595397,1759248653781,-500.0,0.00019178,2]
[388595398,1759248653791,-230.017515,0.00019178,2]
[388595399,1759248653800,-151.0,0.00019178,2]
[388595400,1759248653810,-500.0,0.00019178,2]
[388595401,1759248653820,-276.778753,0.00019178,2]
[388595402,1759248653831,-151.0,0.00019178,2]
[388595403,1759248653840,-500.0,0.00019178,2]
[388595404,1759248653851,-500.0,0.00019178,2]
[388595405,1759248653862,-177.386246,0.00019178,2]
[388595406,1759248653873,-151.0,0.00019178,2]
[388595407,1759248653883,-500.0,0.00019178,2]
[388595408,1759248653893,-214.986634,0.00019178,2]
[388595409,1759248653903,-5630.95,0.00019178,2]
[388595410,1759248653912,-177.386246,0.00019178,2]
[388595411,1759248653922,-151.0,0.00019178,2]
[388595412,1759248653932,-284.598896,0.00019178,2]
[388595413,1759248653942,-1068.35,0.00019178,2]
[388595414,1759248653952,-2904.96,0.00019178,2]
[388595415,1759248653962,-177.386246,0.00019178,2]
[388595416,1759248653972,-500.0,0.00019178,2]
[388595417,1759248653982,-151.0,0.00019178,2]
[388595418,1759248653992,-3907.87,0.00019178,2]
[388595419,1759248654002,-214.986634,0.00019178,2]
[388595420,1759248654012,-786.69,0.00019178,2]
[388595421,1759248654022,-177.386246,0.00019178,2]
[388595422,1759248654032,-151.0,0.00019178,2]
[388595423,1759248654042,-157.809899,0.00019178,2]
[388595424,1759248654052,-151.0,0.00019178,2]
[388595425,1759248654062,-151.0,0.00019178,2]
[388595426,1759248654072,-209.262526,0.00019178,2]
[388595427,1759248654082,-500.0,0.00019178,2]
[388595428,1759248654092,-157.809899,0.00019178,2]
[388595429,1759248654102,-500.0,0.00019178,2]
[388595430,1759248654115,-4361.43,0.00019178,2]
[388595431,1759248654125,-521.42,0.00019178,2]
[388595432,1759248654135,-208.896971,0.00019178,2]
[388595433,1759248654145,-151.0,0.00019178,2]
[388595434,1759248654156,-151.0,0.00019178,2]
[388595435,1759248654167,-157.809899,0.00019178,2]
[388595436,1759248654177,-208.896971,0.00019178,2]
[388595437,1759248654187,-2866.5,0.00019178,2]
[388595438,1759248654198,-674.574208,0.00019178,2]
[388595439,1759248654209,-2969.85,0.00019178,2]
[388595440,1759248654219,-151.0,0.00019178,2]
[388595441,1759248654230,-500.0,0.00019178,2]
[388595442,1759248654240,-208.896971,0.00019178,2]
[388595443,1759248654250,-500.0,0.00019178,2]
[388595444,1759248654260,-1144.69,0.00019178,2]
[388595445,1759248654270,-674.574208,0.00019178,2]
[388595446,1759248654280,-1806.81,0.00019178,2]
[388595447,1759248654289,-500.0,0.00019178,2]
[388595448,1759248654299,-500.0,0.00019178,2]
[388595449,1759248654309,-674.574208,0.00019178,2]
[388595450,1759248654319,-1943.3,0.00019178,2]
[388595451,1759248654329,-500.0,0.00019178,2]
[388595452,1759248654339,-1752.51,0.00019178,2]
[388595453,1759248654348,-674.574208,0.00019178,2]
[388595454,1759248654361,-214.986634,0.00019178,2]
[388595455,1759248654375,-500.0,0.00019178,2]
[388595456,1759248654385,-500.0,0.00019178,2]
[388595457,1759248654395,-1608.86,0.00019178,2]
[388595458,1759248654405,-500.0,0.00019178,2]
[388595459,1759248654415,-214.986634,0.00019178,2]
[388595460,1759248654424,-500.0,0.00019178,2]
[388595461,1759248654434,-157.809899,0.00019178,2]
[388595462,1759248654445,-2340.15,0.00019178,2]
[388595463,1759248654455,-5582.851194,0.00019178,2]
[388595464,1759248654464,-500.0,0.00019178,2]
[388595465,1759248654473,-500.0,0.00019178,2]
[388595466,1759248654483,-500.0,0.00019178,2]
[388595467,1759248654493,-500.0,0.00019178,2]
[388595468,1759248654503,-500.0,0.00019178,2]
[388595469,1759248654513,-151.0,0.00019178,2]
[388595470,1759248654522,-500.0,0.00019178,2]
[388595471,1759248654532,-4326.28,0.00019178,2]
[388595472,1759248654542,-151.0,0.00019178,2]
[388595473,1759248654552,-2582.996737,0.00019178,2]
[388595474,1759248654565,-500.0,0.00019178,2]
[388595475,1759248654575,-500.0,0.00019178,2]
[388595476,1759248654585,-516.65,0.00019178,2]
[388595477,1759248654595,-3791.3,0.00019178,2]
[388595478,1759248654609,-500.0,0.00019178,2]
[388595479,1759248654618,-1374.23,0.00019178,2]
[388595480,1759248654628,-1611.02,0.00019178,2]
[388595481,1759248654643,-500.0,0.00019178,2]
[388595482,1759248654653,-500.0,0.00019178,2]
[388595483,1759248654663,-500.0,0.00019178,2]
[388595484,1759248654672,-762.25,0.00019178,2]
[388595485,1759248654682,-500.0,0.00019178,2]
[388595486,1759248654692,-151.0,0.00019178,2]
[388595487,1759248654702,-151.0,0.00019178,2]
[388595488,1759248654711,-500.0,0.00019178,2]
[388595489,1759248654720,-500.0,0.00019178,2]
[388595490,1759248654730,-151.0,0.00019178,2]
[388595491,1759248654740,-151.0,0.00019178,2]
[388595492,1759248654749,-151.0,0.00019178,2]
[388595493,1759248654759,-151.0,0.00019178,2]
[388595494,1759248654768,-500.0,0.00019178,2]
[388595495,1759248654778,-1250.36,0.00019178,2]
[388595496,1759248654788,-151.0,0.00019178,2]
[388595497,1759248654797,-151.772054,0.00019178,2]
[388595498,1759248654807,-2111.16,0.00019178,2]
[388595499,1759248654817,-500.0,0.00019178,2]
[388595500,1759248654827,-500.0,0.00019178,2]
[388595501,1759248654837,-2601.97,0.00019178,2]
[388595502,1759248654847,-500.0,0.00019178,2]
[388595503,1759248654856,-1800.98,0.00019178,2]
[388595504,1759248654868,-3811.44,0.00019178,2]
[388595505,1759248654878,-500.0,0.00019178,2]
[388595506,1759248654888,-618.99,0.00019178,2]
[388595507,1759248654897,-500.0,0.00019178,2]
[388595508,1759248654908,-500.0,0.00019178,2]
[388595509,1759248654917,-180.132918,0.00019178,2]
[388595510,1759248654927,-180.132918,0.00019178,2]
[388595511,1759248654938,-516.21,0.00019178,2]
[388595512,1759248654947,-945.57,0.00019178,2]
[388595513,1759248654957,-180.132918,0.00019178,2]
[388595514,1759248654967,-180.132918,0.00019178,2]
[388595515,1759248654976,-3481.09,0.00019178,2]
[388595516,1759248654985,-500.0,0.00019178,2]
[388595517,1759248654995,-500.0,0.00019178,2]
[388595518,1759248655005,-500.0,0.00019178,2]
[388595519,1759248655015,-180.132918,0.00019178,2]
[388595520,1759248655024,-180.132918,0.00019178,2]
[388595521,1759248655034,-500.0,0.00019178,2]
[388595522,1759248655043,-180.132918,0.00019178,2]
[388595523,1759248655053,-500.0,0.00019178,2]
[388595524,1759248655062,-180.132918,0.00019178,2]
[388595525,1759248655071,-4427.63,0.00019178,2]
[388595526,1759248655081,-885.32,0.00019178,2]
[388595527,1759248655090,-151.0,0.00019178,2]
[388595528,1759248655099,-1378.4,0.00019178,2]
[388595529,1759248655110,-151.0,0.00019178,2]
[388595530,1759248655120,-4161.57,0.00019178,2]
[388595531,1759248655129,-500.0,0.00019178,2]
[388595532,1759248655139,-500.0,0.00019178,2]
[388595533,1759248655148,-151.0,0.00019178,2]
[388595534,1759248655158,-500.0,0.00019178,2]
[388595535,1759248655167,-151.0,0.00019178,2]
[388595536,1759248655176,-500.0,0.00019178,2]
[388595537,1759248655185,-151.0,0.00019178,2]
[388595538,1759248655195,-151.0,0.00019178,2]
[388595539,1759248655204,-151.0,0.00019178,2]
[388595540,1759248655213,-155.782733,0.00019178,2]
[388595541,1759248655223,-4249.42,0.00019178,2]
[388595542,1759248655231,-151.0,0.00019178,2]
[388595543,1759248655241,-151.0,0.00019178,2]
[388595544,1759248655250,-151.0,0.00019178,2]
[388595545,1759248655259,-151.0,0.00019178,2]
[388595546,1759248655268,-500.0,0.00019178,2]
[388595547,1759248655279,-500.0,0.00019178,2]
[388595548,1759248655288,-500.0,0.00019178,2]
[388595549,1759248655298,-657.43,0.00019178,2]
[388595550,1759248655307,-3301.0,0.00019178,2]
[388595551,1759248655316,-500.0,0.00019178,2]
[388595552,1759248655326,-1871.21,0.00019178,2]
[388595553,1759248655335,-151.0,0.00019178,2]
[388595554,1759248655345,-151.0,0.00019178,2]
[388595555,1759248655355,-500.0,0.00019178,2]
[388595556,1759248655365,-151.0,0.00019178,2]
[388595557,1759248655375,-2394.91,0.00019178,2]
[388595558,1759248655385,-151.0,0.00019178,2]
[388595559,1759248655395,-1826.36,0.00019178,2]
[388595560,1759248655405,-151.0,0.00019178,2]
[388595561,1759248655414,-176.514806,0.00019178,2]
[388595562,1759248655424,-500.0,0.00019178,2]
[388595563,1759248655433,-151.0,0.00019178,2]
[388595564,1759248655442,-151.0,0.00019178,2]
[388595565,1759248655452,-237.479068,0.00019178,2]
[388595566,1759248655460,-237.479068,0.00019178,2]
[388595567,1759248655470,-500.0,0.00019178,2]
[388595568,1759248655479,-500.0,0.00019178,2]
[388595569,1759248655488,-500.0,0.00019178,2]
[388595570,1759248655498,-151.0,0.00019178,2]
[388595571,1759248655507,-151.0,0.00019178,2]
[388595572,1759248655517,-1668.19,0.00019178,2]
[388595573,1759248655527,-237.479068,0.00019178,2]
[388595574,1759248655536,-237.479068,0.00019178,2]
[388595575,1759248655546,-500.0,0.00019178,2]
[388595576,1759248655556,-166.869402,0.00019178,2]
[388595577,1759248655570,-584.46,0.00019178,2]
[388595578,1759248655579,-986.37,0.00019178,2]
[388595579,1759248655589,-600.88,0.00019178,2]
[388595580,1759248655600,-3776.28,0.00019178,2]
[388595581,1759248655735,-237.479068,0.00019178,2]
[388595582,1759248655745,-237.479068,0.00019178,2]
[388595583,1759248655755,-1062.35,0.00019178,2]
[388595584,1759248655764,-237.479068,0.00019178,2]
[388595585,1759248655774,-237.479068,0.00019178,2]
[388595586,1759248655784,-500.0,0.00019178,2]
[388595587,1759248655794,-2252.35,0.00019178,2]
[388595588,1759248655803,-1072.04,0.00019178,2]
[388595589,1759248655813,-4173.34,0.00019178,2]
[388595590,1759248655822,-151.0,0.00019178,2]
[388595591,1759248655832,-500.0,0.00019178,2]
[388595592,1759248655842,-500.0,0.00019178,2]
[388595593,1759248655851,-500.0,0.00019178,2]
[388595594,1759248655861,-500.0,0.00019178,2]
[388595595,1759248655874,-3057.69,0.00019178,2]
[388595596,1759248655884,-1411.8,0.00019178,2]
[388595597,1759248655894,-961.15,0.00019178,2]
[388595598,1759248655904,-3287.78,0.00019178,2]
[388595599,1759248655914,-500.0,0.00019178,2]
[388595600,1759248655923,-2656.87,0.00019178,2]
[388595601,1759248655932,-500.0,0.00019178,2]
[388595602,1759248655942,-500.0,0.00019178,2]
[388595603,1759248655952,-1049.93,0.00019178,2]
[388595604,1759248655961,-500.0,0.00019178,2]
[388595605,1759248655970,-500.0,0.00019178,2]
[388595606,1759248655979,-3460.76,0.00019178,2]
[388595607,1759248655989,-500.0,0.00019178,2]
[388595608,1759248655998,-282.16985209,0.00019178,2]
[388595609,1759248656904,-217.83014791,0.00019178,2]
[388595610,1759248656914,-842.48,0.00019178,2]
[388595611,1759248656925,-500.0,0.00019178,2]
[388595612,1759248656935,-232.38593,0.00019178,2]
[388595613,1759248656944,-500.0,0.00019178,2]
[388595614,1759248656954,-2110.27,0.00019178,2]
[388595615,1759248656964,-232.38593,0.00019178,2]
[388595616,1759248656974,-151.0,0.00019178,2]
[388595617,1759248656983,-232.38593,0.00019178,2]
[388595618,1759248656993,-151.0,0.00019178,2]
[388595619,1759248657002,-232.38593,0.00019178,2]
[388595620,1759248657012,-151.0,0.00019178,2]
[388595621,1759248657021,-151.0,0.00019178,2]
[388595622,1759248657031,-2508.54,0.00019178,2]
[388595623,1759248657040,-151.0,0.00019178,2]
[388595624,1759248657050,-232.38593,0.00019178,2]
[388595625,1759248657061,-151.0,0.00019178,2]
[388595626,1759248657071,-232.38593,0.00019178,2]
[388595627,1759248657080,-151.0,0.00019178,2]
[388595628,1759248657090,-151.0,0.00019178,2]
[388595629,1759248657100,-3440.87,0.00019178,2]
[388595630,1759248657111,-151.0,0.00019178,2]
[388595631,1759248657121,-1575.02,0.00019178,2]
[388595632,1759248657130,-232.38593,0.00019178,2]
[388595633,1759248657139,-151.0,0.00019178,2]
[388595634,1759248657149,-500.0,0.00019178,2]
[388595635,1759248657158,-625.09,0.00019178,2]
[388595636,1759248657168,-151.0,0.00019178,2]
[388595637,1759248657177,-500.0,0.00019178,2]
[388595638,1759248657186,-3005.13,0.00019178,2]
[388595639,1759248657197,-232.38593,0.00019178,2]
[388595640,1759248657206,-738.21,0.00019178,2]
[388595641,1759248657216,-185.258496,0.00019178,2]
[388595642,1759248657225,-500.0,0.00019178,2]
[388595643,1759248657234,-500.0,0.00019178,2]
[388595644,1759248657244,-151.0,0.00019178,2]
[388595645,1759248657253,-2732.36,0.00019178,2]
[388595646,1759248657262,-783.46,0.00019178,2]
[388595647,1759248657271,-500.0,0.00019178,2]
[388595648,1759248657281,-500.0,0.00019178,2]
[388595649,1759248657290,-500.0,0.00019178,2]
[388595650,1759248657300,-500.0,0.00019178,2]
[388595651,1759248657310,-500.0,0.00019178,2]
[388595652,1759248657319,-500.0,0.00019178,2]
[388595653,1759248657329,-500.0,0.00019178,2]
[388595654,1759248657339,-500.0,0.00019178,2]
[388595655,1759248657351,-500.0,0.00019178,2]
[388595656,1759248657361,-500.0,0.00019178,2]
[388595657,1759248657370,-500.0,0.00019178,2]
[388595658,1759248657379,-151.0,0.00019178,2]
[388595659,1759248657388,-318.66287409,0.00019178,2]
[388595660,1759248657404,-181.33712591,0.00019178,2]
[388595661,1759248657414,-151.0,0.00019178,2]
[388595662,1759248657423,-500.0,0.00019178,2]
[388595663,1759248657432,-151.0,0.00019178,2]
[388595664,1759248657442,-151.0,0.00019178,2]
[388595665,1759248657451,-500.0,0.00019178,2]
[388595666,1759248657461,-500.0,0.00019178,2]
[388595667,1759248657470,-151.0,0.00019178,2]
[388595668,1759248657480,-60.5618741,0.00019178,2]
[388595669,1759248657493,-439.4381259,0.00019178,2]
[388595670,1759248657502,-151.0,0.00019178,2]
[388595671,1759248657512,-151.0,0.00019178,2]
[388595672,1759248657522,-500.0,0.00019178,2]
[388595673,1759248657532,-64.28687385,0.00019178,2]
[388595674,1759248657661,-86.71312615,0.00019178,2]
[388595675,1759248657671,-500.0,0.00019178,2]
[388595676,1759248657681,-500.0,0.00019178,2]
[388595677,1759248657691,-151.0,0.00019178,2]
[388595678,1759248657702,-500.0,0.00019178,2]
[388595679,1759248657711,-151.0,0.00019178,2]
[388595680,1759248657723,-500.0,0.00019178,2]
[388595681,1759248657733,-312.13377122,0.00019178,2]
[388595682,1759248657743,-500.0,0.00019178,2]
[388595683,1759248657753,-500.0,0.00019178,2]
[388595684,1759248657763,-500.0,0.00019178,2]
[388595685,1759248657772,-500.0,0.00019178,2]
[388595686,1759248657782,-3246.07,0.00019178,2]
[388595687,1759248657792,-3440.26,0.00019178,2]